[Event "Azerbaijan Men Championship 2024"]
[Site "Baku"]
[Date "2024.04.12"]
[Round "2.6"]
[White "Talibov, Shiroghlan"]
[Black "Suleymanli, Suleyman"]
[Result "1/2-1/2"]
[ECO "D45"]
[WhiteElo "2373"]
[BlackElo "2246"]
[Annotator "RC"]
[PlyCount "80"]
[EventDate "2024.04.11"]
[EventType "swiss"]
[EventCountry "AZE"]
[SourceTitle "playchess.com"]
[Source "ChessBase"]
[SourceQuality "1"]
[TimeControl "40/5400+30:1800+30"]

1. c4 {[%emt 0:00:01]} e6 {[%emt 0:00:03]} 2. Nc3 {[%emt 0:00:11]} d5 {[%emt 0:00:03]} 3. d4 {[%emt 0:00:07]} Nf6 {[%emt 0:00:03]} 4. Nf3 {[%emt 0:00:06]} Ne4 {[%emt 0:00:02]} 5. Qc2 {[%emt 0:13:40]} Bb4 {[%emt 1:32:49]} 6. e3 {[%emt 0:05:04]} c6 {[%emt 0:00:00]} 7. Bd3 {[%emt 0:02:40]} f5 {[%emt 0:00:00]} 8. O-O {[%emt 0:02:57]} Bd6 {[%emt 0:00:00]} 9. c5 {[%emt 0:08:17]} Bc7 {[%emt 0:00:00]} 10. b4 {[%emt 0:00:39]} O-O {[%emt 0:00:00]} 11. Ne2 {[%emt 0:14:44]} Qf6 {[%emt 0:00:00]} 12. Ne1 {[%emt 0:05:11]} Nd7 {[%emt 0:00:00]} 13. f3 {[%emt 0:04:06]} Qh6 {[%emt 0:00:00]} 14. g3 {[%emt 0:02:22]} e5 {[%emt 0:00:00]} 15. f4 {[%emt 0:08:48]} exf4 {[%emt 0:00:00]} 16. exf4 {[%emt 0:00:09]} Ndf6 {[%emt 0:00:00]} 17. Nf3 {[%emt 0:00:48]} Ng4 {[%emt 0:00:00]} 18. Nc3 {[%emt 0:04:09]} Be6 {[%emt 0:00:00]} 19. Nd1 {[%emt 0:00:25]} Qf6 {[%emt 0:00:00]} 20. Rb1 {[%emt 0:01:33]} a6 {[%emt 0:00:00]} 21. Ne3 {[%emt 0:00:27]} h5 {[%emt 0:00:00]} 22. Ng2 {[%emt 0:04:28]} Rfe8 {[%emt 0:00:00]} 23. a4 {[%emt 0:00:17]} Bd7 {[%emt 0:00:00]} 24. Ngh4 {[%emt 0:04:04]} Rec8 {[%emt 0:01:59]} 25. Rb2 {[%emt 0:04:59]} Be8 {[%emt 0:02:17]} 26. Ne5 {[%emt 0:00:19]} Qe6 {[%emt 0:00:50]} 27. Nhf3 {[%emt 0:02:38]} Bd8 {[%emt 0:00:29]} 28. Qg2 {[%emt 0:01:23]} Be7 {[%emt 0:02:03]} 29. Re1 {[%emt 0:02:28]} Rcb8 {[%emt 0:00:48]} 30. a5 {[%emt 0:03:06]} Bf6 {[%emt 0:01:24]} 31. h3 {[%emt 0:00:38]} Nh6 {[%emt 0:01:18]} 32. Be3 {[%emt 0:01:26]} Bd7 {[%emt 0:00:41]} 33. Kf1 {[%emt 0:00:41]} Re8 {[%emt 0:01:07]} 34. Ke2 {[%emt 0:00:19]} Kf8 {[%emt 0:00:08]} 35. Kd1 {[%emt 0:01:33]} Ke7 {[%emt 0:00:01]} 36. Kc1 {[%emt 0:01:24]} Kd8 {[%emt 0:00:06]} 37. Be2 {[%emt 0:00:44]} Nf7 {[%emt 0:01:39]} 38. Nd2 {[%emt 0:00:51]} g6 {[%emt 0:00:44]} 39. Nxe4 {[%emt 0:00:52]} Bxe5 {[%emt 0:00:37]} 40. Nd2 {[%emt 0:00:00]} Bg7 {[%emt 0:00:00]} 1/2-1/2

[Event "Azerbaijan Men Championship 2024"]
[Site "Baku"]
[Date "2024.04.12"]
[Round "2.7"]
[White "Ahmad, Khagan"]
[Black "Sadikhov, Ulvi"]
[Result "1/2-1/2"]
[ECO "B38"]
[WhiteElo "2321"]
[BlackElo "2497"]
[Annotator "RC"]
[PlyCount "184"]
[EventDate "2024.04.11"]
[EventType "swiss"]
[EventCountry "AZE"]
[SourceTitle "playchess.com"]
[Source "ChessBase"]
[SourceQuality "1"]
[TimeControl "40/5400+30:1800+30"]

1. Nf3 {[%emt 0:00:10]} Nf6 {[%emt 0:00:09]} 2. c4 {[%emt 0:01:23]} g6 {[%emt 0:00:13]} 3. Nc3 {[%emt 0:00:05]} Bg7 {[%emt 0:00:04]} 4. e4 {[%emt 0:00:04]} c5 {[%emt 0:01:04]} 5. d4 {[%emt 0:00:45]} cxd4 {[%emt 0:00:05]} 6. Nxd4 {[%emt 0:00:03]} d6 {[%emt 0:00:08]} 7. Be2 {[%emt 0:00:03]} O-O {[%emt 0:00:16]} 8. O-O {[%emt 0:00:08]} Nc6 {[%emt 0:00:27]} 9. Be3 {[%emt 0:00:08]} Bd7 {[%emt 0:00:30]} 10. Qd2 {[%emt 0:00:49]} Nxd4 {[%emt 0:00:11]} 11. Bxd4 {[%emt 0:00:05]} Bc6 {[%emt 0:00:06]} 12. f3 {[%emt 0:00:06]} Nd7 {[%emt 0:00:08]} 13. Be3 {[%emt 0:00:06]} a5 {[%emt 0:00:05]} 14. b3 {[%emt 0:01:18]} Nc5 {[%emt 0:00:04]} 15. Rab1 {[%emt 0:00:05]} e6 {[%emt 0:00:43]} 16. Rfd1 {[%emt 0:02:36]} Be5 {[%emt 0:00:08]} 17. Bf4 {[%emt 0:00:43]} Qf6 {[%emt 0:05:19]} 18. Bxe5 {[%emt 0:05:10]} Qxe5 {[%emt 0:01:59]} 19. Qxd6 {[%emt 0:39:06]} Qxc3 {[%emt 0:01:50]} 20. Qxc5 {[%emt 0:00:07]} Qc2 {[%emt 0:01:46]} 21. Bf1 {[%emt 0:08:23]} Qxa2 {[%emt 0:03:44]} 22. Qb6 {[%emt 0:08:17]} Qa3 {[%emt 0:02:56]} 23. c5 {[%emt 0:10:46]} Rfc8 {[%emt 0:06:13]} 24. Ra1 {[%emt 0:05:59]} Qb4 {[%emt 0:01:03]} 25. Qxb4 {[%emt 0:03:26]} axb4 {[%emt 0:00:06]} 26. Kf2 {[%emt 0:00:19]} Rxa1 {[%emt 0:06:59]} 27. Rxa1 {[%emt 0:00:11]} Rd8 {[%emt 0:00:25]} 28. Ke3 {[%emt 0:00:36]} f5 {[%emt 0:00:14]} 29. Ra5 {[%emt 0:09:18]} fxe4 {[%emt 0:23:33]} 30. fxe4 {[%emt 0:00:07]} Rd1 {[%emt 0:05:09]} 31. Bb5 {[%emt 0:00:35]} Re1+ {[%emt 0:19:19]} 32. Kd2 {[%emt 0:02:34]} Rg1 {[%emt 0:05:44]} 33. Bxc6 {[%emt 0:00:14]} Rxg2+ {[%emt 0:00:03]} 34. Kd3 {[%emt 0:00:07]} bxc6 {[%emt 0:00:03]} 35. Ra6 {[%emt 0:00:27]} Rxh2 {[%emt 0:00:12]} 36. Rxc6 {[%emt 0:00:06]} Rh3+ {[%emt 0:03:32]} 37. Kc4 {[%emt 0:00:48]} g5 {[%emt 0:01:52]} 38. Kxb4 {[%emt 0:02:45]} g4 {[%emt 0:01:00]} 39. Rxe6 {[%emt 0:01:13]} Kf7 {[%emt 0:02:02]} 40. Re5 {[%emt 0:00:00]} Rh6 {[%emt 0:00:00]} 41. Kb5 {[%emt 0:16:50]} g3 {[%emt 0:08:25]} 42. c6 {[%emt 0:00:59]} g2 {[%emt 0:05:08]} 43. Rg5 {[%emt 0:00:07]} Rh5 {[%emt 0:11:53]} 44. Rxh5 {[%emt 0:00:10]} g1=Q {[%emt 0:00:07]} 45. c7 {[%emt 0:00:41]} Qg8 {[%emt 0:01:09]} 46. Rc5 {[%emt 0:11:59]} Qc8 {[%emt 0:00:17]} 47. Kb6 {[%emt 0:00:25]} Ke7 {[%emt 0:05:45]} 48. b4 {[%emt 0:00:54]} h5 {[%emt 0:01:09]} 49. Re5+ {[%emt 0:01:49]} Kd6 {[%emt 0:01:25]} 50. Rd5+ {[%emt 0:00:05]} Ke7 {[%emt 0:00:07]} 51. b5 {[%emt 0:02:03]} h4 {[%emt 0:01:12]} 52. Rh5 {[%emt 0:00:41]} h3 {[%emt 0:02:28]} 53. Rh7+ {[%emt 0:00:32]} Kd6 {[%emt 0:02:09]} 54. e5+ {[%emt 0:00:30]} Kd5 {[%emt 0:05:15]} 55. e6 {[%emt 0:00:31]} Kxe6 {[%emt 0:01:35]} 56. Rxh3 {[%emt 0:00:15]} Qd7 {[%emt 0:00:30]} 57. Rc3 {[%emt 0:00:45]} Qc8 {[%emt 0:00:29]} 58. Rd3 {[%emt 0:00:17]} Ke7 {[%emt 0:00:29]} 59. Rd8 {[%emt 0:00:16]} Qe6+ {[%emt 0:00:04]} 60. Kb7 {[%emt 0:00:41]} Qe4+ {[%emt 0:00:04]} 61. Ka7 {[%emt 0:00:16]} Qe3+ {[%emt 0:00:22]} 62. b6 {[%emt 0:00:06]} Qa3+ {[%emt 0:00:11]} 63. Kb8 {[%emt 0:00:30]} Qg3 {[%emt 0:00:31]} 64. Rd4 {[%emt 0:00:52]} Qh2 {[%emt 0:00:55]} 65. Re4+ {[%emt 0:00:12]} Kd7 {[%emt 0:00:04]} 66. Rh4 {[%emt 0:01:14]} Qe5 {[%emt 0:01:42]} 67. Rh7+ {[%emt 0:00:37]} Kc6 {[%emt 0:00:01]} 68. Rh6+ {[%emt 0:00:23]} Kd7 {[%emt 0:00:13]} 69. Rh5 {[%emt 0:00:35]} Qe8+ {[%emt 0:00:33]} 70. Kb7 {[%emt 0:00:05]} Qc8+ {[%emt 0:01:08]} 71. Ka7 {[%emt 0:00:01]} Kc6 {[%emt 0:00:34]} 72. Rh6+ {[%emt 0:00:09]} Kb5 {[%emt 0:00:36]} 73. Rd6 {[%emt 0:00:34]} Qh3 {[%emt 0:00:24]} 74. Rf6 {[%emt 0:01:23]} Qc8 {[%emt 0:00:28]} 75. Rg6 {[%emt 0:00:35]} Kc5 {[%emt 0:00:36]} 76. Rg1 {[%emt 0:00:32]} Kb5 {[%emt 0:00:32]} 77. Rb1+ {[%emt 0:00:35]} Ka5 {[%emt 0:00:04]} 78. Ra1+ {[%emt 0:00:19]} Kb5 {[%emt 0:00:06]} 79. Ra2 {[%emt 0:00:16]} Qe6 {[%emt 0:01:10]} 80. Rb2+ {[%emt 0:00:37]} Ka5 {[%emt 0:00:32]} 81. b7 {[%emt 0:00:44]} Qa6+ {[%emt 0:00:43]} 82. Kb8 {[%emt 0:00:18]} Qd6 {[%emt 0:00:13]} 83. Ra2+ {[%emt 0:00:25]} Kb6 {[%emt 0:00:05]} 84. Rb2+ {[%emt 0:00:56]} Kc6 {[%emt 0:00:15]} 85. Rc2+ {[%emt 0:00:24]} Kb6 {[%emt 0:00:03]} 86. Rc1 {[%emt 0:00:30]} Qe5 {[%emt 0:00:25]} 87. Rc4 {[%emt 0:00:38]} Qd6 {[%emt 0:00:08]} 88. Rc2 {[%emt 0:00:30]} Qe5 {[%emt 0:00:09]} 89. Rc1 {[%emt 0:00:23]} Qd6 {[%emt 0:00:38]} 90. Rb1+ {[%emt 0:00:35]} Kc6 {[%emt 0:00:04]} 91. Rc1+ {[%emt 0:00:22]} Kb6 {[%emt 0:00:04]} 92. Rc3 {[%emt 0:00:38]} Qe5 {[%emt 0:00:27]} 1/2-1/2

[Event "Azerbaijan Men Championship 2024"]
[Site "Baku"]
[Date "2024.04.12"]
[Round "2.8"]
[White "Abdulov, Orkhan"]
[Black "Sevdimaliyev, Urfan"]
[Result "1-0"]
[ECO "C10"]
[WhiteElo "2401"]
[BlackElo "2320"]
[Annotator "RC"]
[PlyCount "63"]
[EventDate "2024.04.11"]
[EventType "swiss"]
[EventCountry "AZE"]
[SourceTitle "playchess.com"]
[Source "ChessBase"]
[SourceQuality "1"]
[TimeControl "40/5400+30:1800+30"]

1. e4 {[%emt 0:01:32]} e6 {[%emt 0:00:12]} 2. d4 {[%emt 0:00:26]} d5 {[%emt 0:00:06]} 3. Nc3 {[%emt 0:00:46]} dxe4 {[%emt 0:00:23]} 4. Nxe4 {[%emt 0:00:20]} Nd7 {[%emt 0:00:04]} 5. Nf3 {[%emt 0:00:50]} Ngf6 {[%emt 0:00:06]} 6. Bd3 {[%emt 0:05:10]} c5 {[%emt 0:00:27]} 7. Nxf6+ {[%emt 0:08:31]} Nxf6 {[%emt 0:00:27]} 8. O-O {[%emt 0:00:20]} cxd4 {[%emt 0:02:37]} 9. Nxd4 {[%emt 0:00:55]} Bc5 {[%emt 0:03:42]} 10. Nf3 {[%emt 0:06:51]} O-O {[%emt 0:01:04]} 11. Qe2 {[%emt 0:03:20]} b6 {[%emt 0:01:54]} 12. Bg5 {[%emt 0:01:07]} Bb7 {[%emt 0:00:17]} 13. Rad1 {[%emt 0:00:23]} Qc7 {[%emt 0:03:07]} 14. Bxf6 {[%emt 0:05:22]} gxf6 {[%emt 0:00:05]} 15. Be4 {[%emt 0:00:31]} Rad8 {[%emt 0:01:37]} 16. Bxb7 {[%emt 0:09:56]} Qxb7 {[%emt 0:00:11]} 17. c3 {[%emt 0:00:06]} Qa8 {[%emt 0:23:06]} 18. b4 {[%emt 0:05:00]} Be7 {[%emt 0:02:09]} 19. Nd4 {[%emt 0:00:47]} Rfe8 {[%emt 0:11:50]} 20. Rd3 {[%emt 0:17:14]} Kh8 {[%emt 0:11:03]} 21. b5 {[%emt 0:07:13]} Qd5 {[%emt 0:07:41]} 22. Rfd1 {[%emt 0:01:14]} Rg8 {[%emt 0:17:46]} 23. g3 {[%emt 0:00:36]} Qc4 {[%emt 0:03:35]} 24. Nc6 {[%emt 0:01:39]} Rxd3 {[%emt 0:00:10]} 25. Qxd3 {[%emt 0:00:38]} Qxd3 {[%emt 0:00:30]} 26. Rxd3 {[%emt 0:00:01]} Bc5 {[%emt 0:02:13]} 27. Rd7 {[%emt 0:03:20]} Rg4 {[%emt 0:01:13]} 28. Rxf7 {[%emt 0:01:51]} Rc4 {[%emt 0:02:30]} 29. Nd8 {[%emt 0:01:48]} e5 {[%emt 0:02:05]} 30. Rxa7 {[%emt 0:02:23]} Rxc3 {[%emt 0:02:17]} 31. Ne6 {[%emt 0:00:25]} Ra3 {[%emt 0:00:31]} 32. Rc7 {[%emt 0:00:44]} 1-0

[Event "Azerbaijan Men Championship 2024"]
[Site "Baku"]
[Date "2024.04.12"]
[Round "2.9"]
[White "Aslanov, Umid"]
[Black "Ibrahimli, Murad"]
[Result "1/2-1/2"]
[ECO "C55"]
[WhiteElo "2239"]
[BlackElo "2396"]
[Annotator "TA"]
[PlyCount "89"]
[EventDate "2024.04.11"]
[EventType "swiss"]
[EventCountry "AZE"]
[SourceTitle "playchess.com"]
[Source "ChessBase"]
[SourceQuality "1"]
[TimeControl "40/5400+30:1800+30"]

{[%evp 22,89,0,0,0,-25,-23,-18,-15,-22,-26,-24,0,-33,105,40,27,-9,0,-25,-11,-37,-20,-18,-34,-31,0,0,0,0,0,0,-8,0,0,0,0,-10,-10,-8,-6,-6,-1,-22,-11,-11,-6,-8,0,0,-4,-7,0,0,0,0,0,0,0,0,0,0,0,0,0,0,0,0,0,0]} 1. e4 {[%emt 0:00:03]} e5 {[%emt 0:00:59]} 2. Nf3 {[%emt 0:00:10]} Nc6 {[%emt 0:00:05]} 3. Bc4 {[%emt 0:00:19]} Nf6 {[%emt 0:00:39]} 4. d3 {[%emt 0:00:13]} h6 {[%emt 0:00:32]} 5. c3 {[%emt 0:00:27]} d6 {[%emt 0:02:45]} 6. Nbd2 {[%emt 0:00:08]} g6 {[%emt 0:00:16]} 7. O-O {[%emt 0:01:28]} Bg7 {[%emt 0:00:15]} 8. Re1 {[%emt 0:03:42]} O-O {[%emt 0:00:48]} 9. Nf1 {[%emt 0:05:00]} Na5 {[%emt 0:06:44]} 10. Bb5 {[%emt 0:01:48]} a6 {[%emt 0:02:27]} 11. Ba4 {[%emt 0:00:05]} b5 {[%emt 0:00:08]} 12. Bc2 {[%emt 0:00:06]} c5 {[%emt 0:00:04]} 13. d4 {[%emt 0:01:16]} cxd4 {[%emt 0:06:20]} 14. cxd4 {[%emt 0:00:37]} exd4 {[%emt 0:00:02]} 15. Nxd4 {[%emt 0:07:46]} Re8 {[%emt 0:02:19]} 16. b3 {[%emt 0:20:45]} Qb6 {[%emt 0:15:01] ...Ng4 is the strong threat.} 17. Bb2 {[%emt 0:10:43]} Ra7 {[%emt 0:01:35]} (17... Bb7 $15 {keeps the upper hand.}) 18. Qd2 {[%emt 0:11:10]} (18. Ne3 $16) 18... Rae7 $14 {[%emt 0:03:07][%cal Od6d5]} 19. Bc3 {[%emt 0:10:11]} Nb7 {[%emt 0:28:54][%cal Ob7c5]} 20. Nf3 {[%emt 0:05:17]} Nc5 {[%emt 0:02:42]} (20... Nxe4 $2 21. Rxe4 Rxe4 22. Bxe4 $18 (22. Bxg7 Re2 $17)) 21. Ng3 {[%emt 0:04:30]} Bb7 {[%emt 0:11:52]} (21... Nfxe4 $2 {is the wrong capture.} 22. Bxe4 (22. Nxe4 Rxe4 23. Bxe4 Nxe4 $18) 22... Rxe4 (22... Nxe4 $2 {too greedy.} 23. Nxe4 Rxe4 24. Rxe4 $18) 23. Nxe4 Nxe4 24. Rxe4 Rxe4 25. Bxg7 Kxg7 26. Qc3+ Kh7 27. Qxc8 $18) (21... Ncxe4 $2 22. Nxe4 Nxe4 23. Bxe4 $18) 22. Bxf6 {[%emt 0:04:05]} Bxf6 {[%emt 0:00:04]} 23. Rad1 {[%emt 0:00:06]} Nxe4 {[%emt 0:10:50]} (23... Kg7 {keeps more tension.} 24. Qxd6 Qxd6 25. Rxd6 h5) 24. Bxe4 {[%emt 0:00:47] The position is equal.} Bxe4 {[%emt 0:00:04]} 25. Nxe4 {[%emt 0:00:31]} Rxe4 {[%emt 0:00:02]} 26. Rxe4 {[%emt 0:00:19]} Rxe4 {[%emt 0:00:01]} 27. Qxd6 {[%emt 0:00:13]} Re6 {[%emt 0:00:07]} 28. Qxb6 {[%emt 0:00:21]} Rxb6 $11 {[%emt 0:00:01][%mdl 4096] Endgame. KRB-KRN} 29. Kf1 {[%emt 0:00:22]} Rc6 {[%emt 0:00:17]} 30. Ke2 $1 {[%emt 0:00:50]} Kf8 {[%emt 0:00:08]} 31. Ne1 {[%emt 0:03:04]} Re6+ {[%emt 0:02:59]} 32. Kd3 {[%emt 0:00:58]} Bd8 {[%emt 0:02:00]} 33. Nc2 {[%emt 0:01:53]} Bb6 {[%emt 0:00:11]} 34. Ne3 {[%emt 0:03:24]} Bxe3 {[%emt 0:00:58]} 35. fxe3 {[%emt 0:00:04] KR-KR} Rd6+ {[%emt 0:00:14]} 36. Ke2 {[%emt 0:00:05]} Rxd1 {[%emt 0:00:48]} 37. Kxd1 {[%emt 0:00:03] KP-KP} Ke7 {[%emt 0:00:04]} 38. Kd2 {[%emt 0:00:42]} Kd6 {[%emt 0:00:16]} 39. Kc3 {[%emt 0:01:06]} Kc5 {[%emt 0:00:49] [#] Threatens to win with ...b4+.} 40. e4 {[%emt 0:00:00]} a5 {[%emt 0:00:00]} 41. a3 {[%emt 0:04:33]} h5 {[%emt 0:21:19]} 42. g3 {[%emt 0:02:52]} f6 {[%emt 0:05:05]} 43. b4+ {[%emt 0:03:56]} axb4+ {[%emt 0:00:10]} 44. axb4+ {[%emt 0:00:03]} Kc6 {[%emt 0:03:06]} 45. h3 {[%emt 0:00:31] Weighted Error Value: White=0.09 (flawless) /Black=0.13 (very precise) .  Mistake:       	White=1     	Black=1      Inaccurate:     	White=3     	Black=1      OK:         	White=15    	Black=9      Best:        	---       	Black=1      Strong:       	White=1     	---} 1/2-1/2

[Event "Azerbaijan Men Championship 2024"]
[Site "Baku"]
[Date "2024.04.12"]
[Round "2.10"]
[White "Hamidov, Allahverdi"]
[Black "Hasanzade, Toghrul"]
[Result "1-0"]
[ECO "D37"]
[WhiteElo "2091"]
[BlackElo "2350"]
[Annotator "RC"]
[PlyCount "106"]
[EventDate "2024.04.11"]
[EventType "swiss"]
[EventCountry "AZE"]
[SourceTitle "playchess.com"]
[Source "ChessBase"]
[SourceQuality "1"]
[TimeControl "40/5400+30:1800+30"]

1. d4 {[%emt 0:00:03]} Nf6 {[%emt 0:00:09]} 2. c4 {[%emt 0:00:07]} e6 {[%emt 0:00:50]} 3. Nc3 {[%emt 0:00:04]} Bb4 {[%emt 0:00:07]} 4. e3 {[%emt 0:00:01]} O-O {[%emt 0:00:09]} 5. Bd3 {[%emt 0:00:03]} d5 {[%emt 0:00:20]} 6. Nf3 {[%emt 0:00:04]} c5 {[%emt 0:00:38]} 7. O-O {[%emt 0:00:10]} Nc6 {[%emt 0:01:51]} 8. cxd5 {[%emt 0:00:07]} exd5 {[%emt 0:00:09]} 9. dxc5 {[%emt 0:00:07]} Bxc5 {[%emt 0:01:19]} 10. h3 {[%emt 0:00:11]} h6 {[%emt 0:01:18]} 11. b3 {[%emt 0:00:16]} Be6 {[%emt 0:05:07]} 12. Bb2 {[%emt 0:00:08]} Qe7 {[%emt 0:01:38]} 13. Rc1 {[%emt 0:02:21]} Rad8 {[%emt 0:05:12]} 14. Ne2 {[%emt 0:02:03]} Ne4 {[%emt 0:08:03]} 15. Nf4 {[%emt 0:08:23]} Bc8 {[%emt 0:07:54]} 16. Bb1 {[%emt 0:11:07]} Bd6 {[%emt 0:28:35]} 17. Nxd5 {[%emt 0:04:37]} Qe6 {[%emt 0:00:29]} 18. Qc2 {[%emt 0:02:13]} f5 {[%emt 0:01:13]} 19. Rfd1 {[%emt 0:03:06]} Ng5 {[%emt 0:03:23]} 20. Ne1 {[%emt 0:08:51]} Qg6 {[%emt 0:04:53]} 21. Kh1 {[%emt 0:06:01]} Ne4 {[%emt 0:04:44]} 22. Nf4 {[%emt 0:03:38]} Qf7 {[%emt 0:03:38]} 23. Kg1 {[%emt 0:08:14]} Kh7 {[%emt 0:08:25]} 24. Qc4 {[%emt 0:03:40]} Qe7 {[%emt 0:01:49]} 25. Nf3 {[%emt 0:00:29]} Ng5 {[%emt 0:02:52]} 26. Nh4 {[%emt 0:03:45]} Bxf4 {[%emt 0:06:50]} 27. Qxf4 {[%emt 0:00:15]} g6 {[%emt 0:00:42]} 28. Nf3 {[%emt 0:05:27]} Rxd1+ {[%emt 0:01:33]} 29. Rxd1 {[%emt 0:00:06]} Rd8 {[%emt 0:00:11]} 30. Rc1 {[%emt 0:07:33]} Be6 {[%emt 0:00:34]} 31. Nd4 {[%emt 0:01:04]} Bd5 {[%emt 0:00:35]} 32. Nxf5 {[%emt 0:01:29]} gxf5 {[%emt 0:00:21]} 33. Qxf5+ {[%emt 0:00:17]} Kg8 {[%emt 0:00:01]} 34. Qg6+ {[%emt 0:00:47]} Kf8 {[%emt 0:00:02]} 35. Qxh6+ {[%emt 0:00:33]} Ke8 {[%emt 0:00:32]} 36. Bf6 {[%emt 0:01:26]} Nf7 {[%emt 0:00:15]} 37. Bxe7 {[%emt 0:00:29]} Nxh6 {[%emt 0:00:04]} 38. Bxd8 {[%emt 0:00:04]} Nxd8 {[%emt 0:00:04]} 39. f4 {[%emt 0:00:32]} Ke7 {[%emt 0:00:14]} 40. g4 {[%emt 0:00:00]} Bc6 {[%emt 0:00:00]} 41. Kf2 {[%emt 0:00:31]} Nhf7 {[%emt 0:00:52]} 42. e4 {[%emt 0:00:26]} Kf6 {[%emt 0:00:32]} 43. Ke3 {[%emt 0:01:42]} Ne6 {[%emt 0:00:19]} 44. e5+ {[%emt 0:00:12]} Ke7 {[%emt 0:00:04]} 45. Be4 {[%emt 0:00:59]} Bxe4 {[%emt 0:01:06]} 46. Kxe4 {[%emt 0:00:19]} Nfd8 {[%emt 0:00:05]} 47. h4 {[%emt 0:00:39]} Nc6 {[%emt 0:00:38]} 48. f5 {[%emt 0:01:53]} Ned4 {[%emt 0:00:19]} 49. Rd1 {[%emt 0:01:38]} Nb5 {[%emt 0:00:11]} 50. Kf4 {[%emt 0:00:37]} Nc3 {[%emt 0:00:08]} 51. f6+ {[%emt 0:00:28]} Kf7 {[%emt 0:00:09]} 52. Rd2 {[%emt 0:00:18]} Ke6 {[%emt 0:00:12]} 53. Rd6+ {[%emt 0:00:12]} Kf7 {[%emt 0:35:42]} 1-0

[Event "Azerbaijan Men Championship 2024"]
[Site "Baku"]
[Date "2024.04.13"]
[Round "3.1"]
[White "Manafov, Vugar"]
[Black "Muradli, Mahammad"]
[Result "0-1"]
[ECO "D41"]
[WhiteElo "2424"]
[BlackElo "2555"]
[Annotator "RC"]
[PlyCount "78"]
[EventDate "2024.04.11"]
[EventType "swiss"]
[EventCountry "AZE"]
[SourceTitle "playchess.com"]
[Source "ChessBase"]
[SourceQuality "1"]
[TimeControl "40/5400+30:1800+30"]

1. d4 {[%emt 0:00:03]} d5 {[%emt 0:03:49]} 2. c4 {[%emt 0:00:31]} e6 {[%emt 0:00:07]} 3. Nc3 {[%emt 0:00:53]} Nf6 {[%emt 0:00:08]} 4. Nf3 {[%emt 0:02:18]} c5 {[%emt 0:00:10]} 5. cxd5 {[%emt 0:01:15]} Nxd5 {[%emt 0:00:08]} 6. e4 {[%emt 0:00:26]} Nxc3 {[%emt 0:00:06]} 7. bxc3 {[%emt 0:00:04]} cxd4 {[%emt 0:00:08]} 8. cxd4 {[%emt 0:00:04]} Bb4+ {[%emt 0:00:09]} 9. Bd2 {[%emt 0:00:14]} Bxd2+ {[%emt 0:00:06]} 10. Qxd2 {[%emt 0:00:04]} O-O {[%emt 0:00:11]} 11. Rd1 {[%emt 0:00:26]} Bd7 {[%emt 0:05:54]} 12. Be2 {[%emt 0:07:05]} Ba4 {[%emt 0:02:48]} 13. Rb1 {[%emt 0:03:32]} Bc6 {[%emt 0:00:16]} 14. Bd3 {[%emt 0:00:50]} h6 {[%emt 0:06:44]} 15. O-O {[%emt 0:01:44]} Nd7 {[%emt 0:00:17]} 16. Rfe1 {[%emt 0:14:17]} Rc8 {[%emt 0:06:18]} 17. Rb3 {[%emt 0:05:55]} Re8 {[%emt 0:03:20]} 18. Bb1 {[%emt 0:06:08]} b6 {[%emt 0:09:25]} 19. Ra3 {[%emt 0:13:25]} Qc7 {[%emt 0:13:19]} 20. Nh4 {[%emt 0:10:42]} Qd8 {[%emt 0:05:38]} 21. Nf3 {[%emt 0:00:18]} a5 {[%emt 0:02:01]} 22. Bd3 {[%emt 0:01:25]} Nf6 {[%emt 0:10:34]} 23. Rc3 {[%emt 0:04:24]} Re7 {[%emt 0:05:07]} 24. Rec1 {[%emt 0:02:05]} Bb7 {[%emt 0:00:47]} 25. Rxc8 {[%emt 0:01:47]} Bxc8 {[%emt 0:00:05]} 26. Rb1 {[%emt 0:08:30]} Bd7 {[%emt 0:12:18]} 27. Ne5 {[%emt 0:04:50]} Be8 {[%emt 0:03:49]} 28. Qe3 {[%emt 0:02:22]} Rb7 {[%emt 0:01:46]} 29. g4 {[%emt 0:05:22]} b5 {[%emt 0:02:51]} 30. h4 {[%emt 0:00:07]} Nd7 {[%emt 0:01:33]} 31. Nf3 {[%emt 0:00:31]} b4 {[%emt 0:01:05]} 32. g5 {[%emt 0:00:17]} hxg5 {[%emt 0:01:43]} 33. hxg5 {[%emt 0:00:01]} Rc7 {[%emt 0:00:41]} 34. Kg2 {[%emt 0:04:10]} Rc3 {[%emt 0:00:32]} 35. Rh1 {[%emt 0:00:07]} e5 {[%emt 0:02:38]} 36. g6 {[%emt 0:00:30]} Qf6 {[%emt 0:00:58]} 37. gxf7+ {[%emt 0:00:04]} Bxf7 {[%emt 0:00:07]} 38. Ng5 {[%emt 0:00:34]} Rxd3 {[%emt 0:00:38]} 39. Qxd3 {[%emt 0:00:43]} Qxg5+ {[%emt 0:00:01]} 0-1

[Event "Azerbaijan Men Championship 2024"]
[Site "Baku"]
[Date "2024.04.13"]
[Round "3.2"]
[White "Suleymanli, Aydin"]
[Black "Rustamov, Rustam"]
[Result "1-0"]
[ECO "B56"]
[WhiteElo "2607"]
[BlackElo "2261"]
[Annotator "RC"]
[PlyCount "81"]
[EventDate "2024.04.11"]
[EventType "swiss"]
[EventCountry "AZE"]
[SourceTitle "playchess.com"]
[Source "ChessBase"]
[SourceQuality "1"]
[TimeControl "40/5400+30:1800+30"]

1. e4 {[%emt 0:00:02]} c5 {[%emt 0:00:31]} 2. Nf3 {[%emt 0:00:10]} d6 {[%emt 0:00:05]} 3. d4 {[%emt 0:00:04]} cxd4 {[%emt 0:00:07]} 4. Nxd4 {[%emt 0:00:06]} Nf6 {[%emt 0:00:12]} 5. Nc3 {[%emt 0:00:05]} e5 {[%emt 0:00:16]} 6. Bb5+ {[%emt 0:00:25]} Nbd7 {[%emt 0:03:00]} 7. Nf5 {[%emt 0:01:57]} a6 {[%emt 0:00:05]} 8. Be2 {[%emt 0:00:03]} Nc5 {[%emt 0:02:04]} 9. Bg5 {[%emt 0:00:15]} Bxf5 {[%emt 0:07:35]} 10. Bxf6 {[%emt 0:00:08]} Qxf6 {[%emt 0:01:12]} 11. Nd5 {[%emt 0:00:01]} Qd8 {[%emt 0:00:32]} 12. exf5 {[%emt 0:00:05]} Be7 {[%emt 0:00:31]} 13. g3 {[%emt 0:07:20]} O-O {[%emt 0:04:00]} 14. a4 {[%emt 0:01:12]} Nd7 {[%emt 0:01:29]} 15. O-O {[%emt 0:08:14]} Nf6 {[%emt 0:01:07]} 16. Bf3 {[%emt 0:00:29]} Rb8 {[%emt 0:01:03]} 17. Qd3 {[%emt 0:03:27]} Nxd5 {[%emt 0:01:17]} 18. Bxd5 {[%emt 0:00:46]} Qb6 {[%emt 0:01:21]} 19. c3 {[%emt 0:01:37]} Rfc8 {[%emt 0:02:13]} 20. Ra3 {[%emt 0:02:08]} a5 {[%emt 0:01:27]} 21. Rb3 {[%emt 0:01:01]} Qc7 {[%emt 0:00:14]} 22. Rb5 {[%emt 0:02:09]} b6 {[%emt 0:00:34]} 23. Re1 {[%emt 0:00:15]} Qd8 {[%emt 0:01:33]} 24. b4 {[%emt 0:09:47]} Qc7 {[%emt 0:02:24]} 25. Rb1 {[%emt 0:03:19]} axb4 {[%emt 0:00:28]} 26. cxb4 {[%emt 0:04:04]} Kf8 {[%emt 0:02:56]} 27. a5 {[%emt 0:00:52]} bxa5 {[%emt 0:01:48]} 28. bxa5 {[%emt 0:00:09]} Rxb5 {[%emt 0:00:06]} 29. Qxb5 {[%emt 0:03:46]} Bd8 {[%emt 0:00:08]} 30. a6 {[%emt 0:00:22]} Qa7 {[%emt 0:00:16]} 31. Qb7 {[%emt 0:03:21]} Rc7 {[%emt 0:00:26]} 32. Qxa7 {[%emt 0:00:56]} Rxa7 {[%emt 1:05:30]} 33. Bb7 {[%emt 0:02:35]} Ke7 {[%emt 0:00:00]} 34. Rd1 {[%emt 0:00:49]} Bb6 {[%emt 0:00:00]} 35. Kg2 {[%emt 0:01:47]} Bc5 {[%emt 0:00:00]} 36. Kf3 {[%emt 0:00:25]} Kd7 {[%emt 0:00:00]} 37. Rd2 {[%emt 0:02:30]} Kc7 {[%emt 0:00:00]} 38. Ke4 {[%emt 0:03:30]} Rxb7 {[%emt 0:00:00]} 39. axb7 {[%emt 0:00:03]} Kxb7 {[%emt 0:00:00]} 40. Kd5 {[%emt 0:00:00]} Kc7 {[%emt 0:00:00]} 41. g4 {[%emt 0:03:54]} 1-0